fUST/lending_fUST_20241126
["ID","MTS","AMOUNT","RATE_DAILY","PERIOD"]
[343307873,1732555843045,-500.0,0.00025233,2]
[343307874,1732555843055,-500.0,0.00025233,2]
[343307875,1732555843066,-500.0,0.00025233,2]
[343307876,1732555843076,-500.0,0.00025233,2]
[343307877,1732555843085,-500.0,0.00025233,2]
[343307878,1732555843094,-350.25421385,0.00025233,2]
[343307879,1732555843103,-303.00000303,0.0002525,2]
[343307880,1732555843113,-500.0,0.00025275,2]
[343307881,1732555843122,-500.0,0.00025275,2]
[343307882,1732555843132,-500.0,0.00025275,2]
[343307883,1732555843142,-500.0,0.00025275,2]
[343307884,1732555843152,-500.0,0.00025275,2]
[343307885,1732555843162,-428.18998239,0.00025275,2]
[343307886,1732555843172,-200.0,0.00025275,2]
[343307887,1732555843181,-500.0,0.00025275,2]
[343307888,1732555843191,-500.0,0.00025275,2]
[343307889,1732555843200,-500.0,0.00025275,2]
[343307890,1732555843210,-582.20451952,0.00025275,2]
[343307891,1732555843220,-500.0,0.00025275,2]
[343307892,1732555843229,-500.0,0.00025275,2]
[343307893,1732555843239,-500.0,0.00025275,2]
[343307894,1732555843248,-500.0,0.00025275,2]
[343307895,1732555843258,-597.37919535,0.00025275,2]
[343307896,1732555843267,-186.83867346,0.00025275,2]
[343307897,1732555843276,-500.0,0.00025275,2]
[343307898,1732555843286,-484.50197059,0.00025275,2]
[343307899,1732555843305,-618.86986116,0.00025275,2]
[343307900,1732555843335,-500.0,0.00025275,2]
[343307901,1732555843346,-500.0,0.00025275,2]
[343307902,1732555843356,-500.0,0.00025275,2]
[343307903,1732555843367,-500.0,0.00025275,2]
[343307904,1732555843378,-500.0,0.00025275,2]
[343307905,1732555843388,-500.0,0.00025275,2]
[343307906,1732555843398,-500.0,0.00025275,2]
[343307907,1732555843407,-500.0,0.00025275,2]
[343307908,1732555843417,-500.0,0.00025275,2]
[343307910,1732555843427,-500.0,0.00025275,2]
[343307911,1732555843437,-500.0,0.00025275,2]
[343307913,1732555843447,-3944.06,0.00025275,2]
[343307915,1732555843457,-808.99,0.00025275,2]
[343307918,1732555843467,-500.0,0.00025275,2]
[343307920,1732555843476,-500.0,0.00025275,2]
[343307921,1732555843486,-500.0,0.00025276,2]
[343307922,1732555843495,-500.0,0.00025276,2]
[343307923,1732555843505,-500.0,0.00025276,2]
[343307924,1732555843514,-500.0,0.00025276,2]
[343307926,1732555843523,-200.17913475,0.00025395,2]
[343307928,1732555843533,-235.32331555,0.00025407,2]
[343307930,1732555843543,-503.208624,0.00025413,2]
[343307932,1732555843553,-323.69467503,0.00025455,2]
[343307933,1732555843565,-1542.54,0.00025466,2]
[343307935,1732555843575,-500.0,0.00025466,2]
[343307937,1732555843585,-1547.39,0.00025466,2]
[343307939,1732555843594,-500.0,0.00025466,2]
[343307940,1732555843604,-303.00000303,0.000255,2]
[343307941,1732555843615,-500.0,0.00025507,2]
[343307943,1732555843625,-500.0,0.00025507,2]
[343307945,1732555843637,-500.0,0.00025507,2]
[343307947,1732555843648,-500.0,0.00025507,2]
[343307948,1732555843663,-500.0,0.00025507,2]
[343307950,1732555843673,-500.0,0.00025507,2]
[343307952,1732555843684,-500.0,0.00025507,2]
[343307954,1732555843696,-598.78,0.00025507,2]
[343307955,1732555843707,-500.0,0.00025507,2]
[343307957,1732555843718,-500.0,0.00025507,2]
[343307958,1732555843729,-500.0,0.00025507,2]
[343307959,1732555843741,-500.0,0.00025507,2]
[343307960,1732555843752,-500.0,0.00025507,2]
[343307962,1732555843763,-500.0,0.00025507,2]
[343307964,1732555843773,-500.0,0.00025507,2]
[343307966,1732555843783,-236.3,0.00025507,2]
[343307968,1732555843793,-500.0,0.00025507,2]
[343307970,1732555843803,-7435.93,0.00025507,2]
[343307972,1732555843816,-500.0,0.00025507,2]
[343307974,1732555843826,-500.0,0.00025507,2]
[343307976,1732555843837,-500.0,0.00025507,2]
[343307978,1732555843846,-500.0,0.00025507,2]
[343307979,1732555843856,-500.0,0.00025507,2]
[343307981,1732555843867,-500.0,0.00025507,2]
[343307983,1732555843877,-500.0,0.00025507,2]
[343307985,1732555843887,-500.0,0.00025549,2]
[343307987,1732555843896,-500.0,0.00025549,2]
[343307988,1732555843907,-500.0,0.00025549,2]
[343307989,1732555843917,-500.0,0.00025549,2]
[343307990,1732555843927,-500.0,0.00025549,2]
[343307991,1732555843937,-306.58,0.00025549,2]
[343307992,1732555843947,-500.0,0.00025549,2]
[343307993,1732555843957,-469.04,0.00025549,2]
[343307994,1732555843966,-500.0,0.00025549,2]
[343307995,1732555843977,-500.0,0.00025549,2]
[343307996,1732555843987,-500.0,0.00025549,2]
[343307997,1732555843997,-500.0,0.00025549,2]
[343307998,1732555844007,-500.0,0.00025549,2]
[343307999,1732555844018,-500.0,0.00025549,2]
[343308000,1732555844028,-500.0,0.00025549,2]
[343308002,1732555844039,-500.0,0.00025549,2]
[343308004,1732555844049,-500.0,0.00025549,2]
[343308006,1732555844059,-500.0,0.00025549,2]
[343308008,1732555844075,-500.0,0.00025549,2]
[343308010,1732555844085,-591.38,0.00025549,2]
[343308012,1732555844094,-500.0,0.00025549,2]
[343308015,1732555844105,-3944.06,0.00025549,2]
[343308017,1732555844115,-808.99,0.00025549,2]
[343308019,1732555844124,-500.0,0.00025549,2]
[343308021,1732555844135,-500.0,0.00025549,2]
[343308023,1732555844145,-500.0,0.0002555,2]
[343308025,1732555844155,-500.0,0.0002555,2]
[343308027,1732555844165,-500.0,0.0002555,2]
[343308029,1732555844175,-500.0,0.0002555,2]
[343308030,1732555844186,-503.208624,0.00025646,2]
[343308031,1732555844196,-601.15850341,0.00025683,2]
[343308032,1732555844205,-1542.54,0.00025739,2]
[343308033,1732555844216,-500.0,0.00025739,2]
[343308034,1732555844226,-1547.39,0.00025739,2]
[343308035,1732555844237,-500.0,0.00025739,2]
[343308036,1732555844247,-303.00000303,0.0002575,2]
[343308037,1732555844257,-680.00910509,0.00025761,2]
[343308038,1732555844267,-500.0,0.00025781,2]
[343308039,1732555844277,-500.0,0.00025781,2]
[343308040,1732555844286,-500.0,0.00025781,2]
[343308041,1732555844296,-500.0,0.00025781,2]
[343308042,1732555844305,-500.0,0.00025781,2]
[343308043,1732555844317,-500.0,0.00025781,2]
[343308044,1732555844328,-500.0,0.00025781,2]
[343308045,1732555844337,-500.0,0.00025781,2]
[343308046,1732555844347,-500.0,0.00025781,2]
[343308047,1732555844357,-500.0,0.00025781,2]
[343308048,1732555844453,-500.0,0.00025781,2]
[343308049,1732555844466,-500.0,0.00025781,2]
[343308050,1732555844477,-500.0,0.00025781,2]
[343308051,1732555844487,-514.9,0.00025781,2]
[343308052,1732555844497,-500.0,0.00025781,2]
[343308053,1732555844507,-7435.93,0.00025781,2]
[343308054,1732555844516,-500.0,0.00025781,2]
[343308055,1732555844526,-500.0,0.00025781,2]
[343308056,1732555844536,-500.0,0.00025781,2]
[343308057,1732555844545,-500.0,0.00025781,2]
[343308058,1732555844555,-500.0,0.00025781,2]
[343308059,1732555844569,-500.0,0.00025781,2]
[343308060,1732555844579,-500.0,0.00025781,2]
[343308061,1732555844588,-300.0,0.000258,2]
[343308062,1732555844603,-500.0,0.00025823,2]
[343308063,1732555844626,-500.0,0.00025823,2]
[343308064,1732555844636,-500.0,0.00025823,2]
[343308065,1732555844650,-500.0,0.00025823,2]
[343308066,1732555844660,-271.8,0.00025823,2]
[343308067,1732555844670,-500.0,0.00025823,2]
[343308068,1732555844680,-500.0,0.00025823,2]
[343308069,1732555844690,-617.5814017,0.00025823,2]
[343308070,1732555844700,-500.0,0.00025823,2]
[343308071,1732555844709,-500.0,0.00025823,2]
[343308072,1732555844719,-500.0,0.00025823,2]
[343308073,1732555844729,-500.0,0.00025823,2]
[343308074,1732555844739,-500.0,0.00025823,2]
[343308075,1732555844750,-500.0,0.00025823,2]
[343308076,1732555844760,-155.1,0.00025823,2]
[343308077,1732555844771,-3944.06,0.00025823,2]
[343308078,1732555844780,-808.99,0.00025823,2]
[343308079,1732555844790,-276.67,0.00025823,2]
[343308080,1732555844799,-500.0,0.00025823,2]
[343308081,1732555844809,-500.0,0.00025824,2]
[343308082,1732555844827,-500.0,0.00025824,2]
[343308083,1732555844837,-500.0,0.00025824,2]
[343308084,1732555844847,-500.0,0.00025824,2]
[343308085,1732555844857,-235.3233155,0.00025864,2]
[343308086,1732555844866,-503.208624,0.00025879,2]
[343308087,1732555844876,-303.00000303,0.00026,2]
[343308088,1732555844886,-37129.11240478,0.00026,30]
[343308089,1732555844895,-1542.54,0.00026013,2]
[343308090,1732555844906,-500.0,0.00026013,2]
[343308091,1732555844916,-1547.39,0.00026013,2]
[343308092,1732555844926,-500.0,0.00026013,2]
[343308093,1732555844936,-500.0,0.00026055,2]
[343308094,1732555844946,-500.0,0.00026055,2]
[343308095,1732555844957,-500.0,0.00026055,2]
[343308096,1732555844966,-500.0,0.00026055,2]
[343308097,1732555844976,-500.0,0.00026055,2]
[343308098,1732555844986,-500.0,0.00026055,2]
[343308099,1732555844996,-500.0,0.00026055,2]
[343308100,1732555845006,-500.0,0.00026055,2]
[343308101,1732555845016,-620.37,0.00026055,2]
[343308102,1732555845026,-500.0,0.00026055,2]
[343308103,1732555845036,-500.0,0.00026055,2]
[343308104,1732555845046,-500.0,0.00026055,2]
[343308105,1732555845055,-500.0,0.00026055,2]
[343308106,1732555845070,-500.0,0.00026055,2]
[343308107,1732555845079,-7435.93,0.00026055,2]
[343308108,1732555845090,-500.0,0.00026055,2]
[343308109,1732555845099,-500.0,0.00026055,2]
[343308110,1732555845109,-500.0,0.00026055,2]
[343308111,1732555845120,-500.0,0.00026055,2]
[343308112,1732555845129,-500.0,0.00026055,2]
[343308113,1732555845139,-500.0,0.00026055,2]
[343308114,1732555845149,-500.0,0.00026055,2]
[343308115,1732555845159,-542.33,0.00026097,2]
[343308116,1732555845169,-566.75,0.00026097,2]
[343308117,1732555845179,-500.0,0.00026097,2]
[343308118,1732555845188,-500.0,0.00026097,2]
[343308119,1732555845198,-500.0,0.00026097,2]
[343308120,1732555845208,-500.0,0.00026097,2]
[343308121,1732555845217,-500.0,0.00026097,2]
[343308122,1732555845227,-500.0,0.00026097,2]
[343308123,1732555845237,-619.85,0.00026097,2]
[343308124,1732555845246,-500.0,0.00026097,2]
[343308125,1732555845256,-450.15,0.00026097,2]
[343308126,1732555845266,-500.0,0.00026097,2]
[343308127,1732555845276,-3944.06,0.00026097,2]
[343308128,1732555845286,-808.99,0.00026097,2]
[343308129,1732555845295,-500.0,0.00026097,2]
[343308130,1732555845305,-500.0,0.00026098,2]
[343308131,1732555845317,-500.0,0.00026098,2]
[343308132,1732555845327,-500.0,0.00026098,2]
[343308133,1732555845337,-500.0,0.00026098,2]
[343308134,1732555845347,-503.208624,0.00026112,2]
[343308135,1732555845357,-456.86459616,0.0002625,4]
[343308136,1732555845367,-1542.54,0.00026287,2]
[343308137,1732555845377,-500.0,0.00026287,2]
[343308138,1732555845388,-1547.39,0.00026287,2]
[343308139,1732555845398,-500.0,0.00026287,2]
[343308140,1732555845411,-235.3233155,0.00026321,2]
[343308141,1732555845421,-500.0,0.00026329,2]
[343308142,1732555845431,-500.0,0.00026329,2]
[343308143,1732555845441,-529.42343593,0.00026329,2]
[343308144,1732555845450,-483.68,0.00026329,2]
[343308145,1732555845460,-500.0,0.00026329,2]
[343308146,1732555845469,-500.0,0.00026329,2]
[343308147,1732555845478,-294.1,0.00026329,2]
[343308148,1732555845488,-271.40333271,0.00026329,2]
[343308149,1732555845497,-500.0,0.00026329,2]
[343308150,1732555845507,-500.0,0.00026329,2]
[343308151,1732555845517,-500.0,0.00026329,2]
[343308152,1732555845527,-500.0,0.00026329,2]
[343308153,1732555845536,-500.0,0.00026329,2]
[343308154,1732555845546,-7435.93,0.00026329,2]
[343308155,1732555845555,-500.0,0.00026329,2]
[343308156,1732555845569,-500.0,0.00026329,2]
[343308157,1732555845578,-304.17086506,0.00026329,2]
[343308158,1732555845587,-500.0,0.00026329,2]
[343308159,1732555845598,-500.0,0.00026329,2]
[343308160,1732555845608,-500.0,0.00026329,2]
[343308161,1732555845617,-545.07760687,0.00026329,2]
[343308163,1732555845627,-503.208624,0.00026345,2]
[343308165,1732555845637,-500.0,0.00026371,2]
[343308166,1732555845647,-500.0,0.00026371,2]
[343308167,1732555845658,-590.73,0.00026371,2]
[343308168,1732555845668,-343.89,0.00026371,2]
[343308169,1732555845680,-500.0,0.00026371,2]
[343308170,1732555845690,-3944.06,0.00026371,2]
[343308171,1732555845700,-808.99,0.00026371,2]
[343308173,1732555845711,-500.0,0.00026371,2]
[343308174,1732555845720,-500.0,0.00026372,2]
[343308176,1732555845731,-611.38,0.00026372,2]
[343308177,1732555845741,-500.0,0.00026372,2]
[343308178,1732555845750,-500.0,0.00026372,2]
[343308179,1732555845760,-1542.54,0.00026561,2]
[343308180,1732555845770,-500.0,0.00026561,2]
[343308181,1732555845779,-1547.39,0.00026561,2]
[343308182,1732555845788,-500.0,0.00026561,2]
[343308183,1732555845798,-503.208624,0.00026579,2]
[343308184,1732555845807,-500.0,0.00026603,2]
[343308185,1732555845819,-500.0,0.00026603,2]
[343308186,1732555845829,-500.0,0.00026603,2]
[343308187,1732555845838,-500.0,0.00026603,2]
[343308188,1732555845849,-365.32,0.00026603,2]
[343308189,1732555845858,-7435.93,0.00026603,2]
[343308190,1732555845867,-500.0,0.00026603,2]
[343308191,1732555845877,-500.0,0.00026603,2]
[343308192,1732555845886,-500.0,0.00026603,2]
[343308193,1732555845896,-500.0,0.00026645,2]
[343308194,1732555845906,-500.0,0.00026645,2]
[343308195,1732555845915,-3944.06,0.00026645,2]
[343308196,1732555845924,-808.99,0.00026645,2]
[343308197,1732555845934,-500.0,0.00026646,2]
[343308198,1732555845943,-500.0,0.00026646,2]
[343308199,1732555845953,-500.0,0.00026646,2]
[343308200,1732555845964,-680.00910509,0.000267,2]
[343308201,1732555845974,-235.3233155,0.00026778,2]
[343308202,1732555845984,-587.0,0.00026795,2]
[343308203,1732555845993,-578.83111077,0.00026798,2]
[343308204,1732555846002,-500.0,0.00026798,2]
[343308206,1732555846012,-500.0,0.00026798,2]
[343308208,1732555846021,-500.0,0.00026798,2]
[343308209,1732555846031,-500.0,0.00026798,2]
[343308210,1732555846041,-500.0,0.00026798,2]
[343308211,1732555846050,-500.0,0.00026798,2]
[343308212,1732555846060,-500.0,0.00026798,2]
[343308213,1732555846073,-500.0,0.00026798,2]
[343308214,1732555846082,-500.0,0.00026798,2]
[343308215,1732555846092,-500.0,0.00026798,2]
[343308216,1732555846101,-500.0,0.00026798,2]
[343308217,1732555846111,-500.0,0.00026798,2]
[343308218,1732555846120,-176.47417244,0.00026798,2]
[343308219,1732555846130,-500.0,0.00026798,2]
[343308220,1732555846139,-500.0,0.00026798,2]
[343308221,1732555846149,-500.0,0.00026798,2]
[343308222,1732555846158,-500.0,0.00026798,2]
[343308223,1732555846168,-500.0,0.00026798,2]
[343308224,1732555846178,-500.0,0.00026798,2]
[343308225,1732555846187,-500.0,0.00026798,2]
[343308227,1732555846196,-500.0,0.00026798,2]
[343308228,1732555846206,-500.0,0.00026798,2]
[343308229,1732555846214,-500.0,0.00026798,2]
[343308230,1732555846225,-500.0,0.00026798,2]
[343308231,1732555846234,-500.0,0.00026798,2]
[343308233,1732555846244,-275.73067416,0.00026798,2]
[343308234,1732555846254,-500.0,0.00026798,2]
[343308235,1732555846264,-500.0,0.00026798,2]
[343308236,1732555846274,-500.0,0.00026798,2]
[343308237,1732555846284,-500.0,0.00026798,2]
[343308238,1732555846294,-500.0,0.00026798,2]
[343308239,1732555846303,-610.26266342,0.00026798,2]
[343308240,1732555846316,-500.0,0.00026798,2]
[343308241,1732555846326,-500.0,0.00026798,2]
[343308242,1732555846335,-500.0,0.00026798,2]
[343308244,1732555846345,-500.0,0.00026798,2]
[343308245,1732555846354,-500.0,0.00026798,2]
[343308246,1732555846364,-500.0,0.00026798,2]
[343308247,1732555846373,-500.0,0.00026798,2]
[343308248,1732555846383,-500.0,0.00026798,2]
[343308249,1732555846392,-500.0,0.00026798,2]
[343308250,1732555846401,-500.0,0.00026798,2]
[343308251,1732555846411,-500.0,0.00026798,2]
[343308252,1732555846495,-159.64,0.00026798,2]
[343308253,1732555846505,-300.0,0.000268,2]
[343308254,1732555846514,-503.208624,0.00026812,2]
[343308255,1732555846524,-1542.54,0.00026835,2]
[343308256,1732555846534,-500.0,0.00026835,2]
[343308257,1732555846544,-1547.39,0.00026835,2]
[343308258,1732555846553,-500.0,0.00026835,2]
[343308259,1732555846564,-500.0,0.00026877,2]
[343308260,1732555846577,-500.0,0.00026877,2]
[343308261,1732555846587,-500.0,0.00026877,2]
[343308262,1732555846596,-7435.93,0.00026877,2]
[343308263,1732555846605,-500.0,0.00026877,2]
[343308264,1732555846615,-500.0,0.00026877,2]
[343308265,1732555846625,-515.87,0.00026919,2]
[343308266,1732555846634,-500.0,0.00026919,2]
[343308267,1732555846645,-3944.06,0.00026919,2]
[343308268,1732555846655,-808.99,0.00026919,2]
[343308269,1732555846664,-500.0,0.0002692,2]
[343308270,1732555846674,-500.0,0.0002692,2]
[343308271,1732555846683,-500.0,0.0002692,2]
[343308272,1732555846694,-4680.96300684,0.00027,7]
[343308273,1732555846703,-500.0,0.00027072,2]
[343308274,1732555846713,-1542.54,0.00027109,2]
[343308275,1732555846724,-500.0,0.00027109,2]
[343308276,1732555846734,-1547.39,0.00027109,2]
[343308277,1732555846743,-500.0,0.00027109,2]
[343308278,1732555846753,-500.0,0.00027151,2]
[343308279,1732555846763,-500.0,0.00027151,2]
[343308280,1732555846772,-266.47537206,0.00027151,2]
[343308281,1732555846782,-7435.93,0.00027151,2]
[343308282,1732555846792,-500.0,0.00027151,2]
[343308283,1732555846802,-507.55,0.00027151,2]
[343308284,1732555846811,-500.0,0.00027193,2]
[343308285,1732555846823,-3944.06,0.00027193,2]
[343308286,1732555846833,-808.99,0.00027193,2]
[343308287,1732555846843,-500.0,0.00027194,2]
[343308288,1732555846852,-500.0,0.00027194,2]
[343308289,1732555846862,-500.0,0.00027194,2]
[343308290,1732555846872,-235.3233155,0.00027235,2]
[343308291,1732555846883,-171.776016,0.00027338,2]
[343308292,1732555846893,-331.411789,0.00027338,2]
[343308293,1732555846903,-1542.54,0.00027383,2]
[343308294,1732555846913,-263.72,0.00027383,2]
[343308295,1732555846923,-1547.39,0.00027383,2]
[343308296,1732555846932,-410.44,0.00027383,2]
[343308297,1732555846942,-500.0,0.00027397,2]
[343308298,1732555846951,-500.0,0.00027397,2]
[343308299,1732555846960,-500.0,0.00027397,2]
[343308300,1732555846969,-500.0,0.00027425,2]
[343308301,1732555846979,-556.86,0.00027425,2]
[343308302,1732555846988,-7435.93,0.00027425,2]
[343308303,1732555846997,-500.0,0.00027425,2]
[343308304,1732555847006,-500.0,0.00027467,2]
[343308305,1732555847016,-3944.06,0.00027467,2]
[343308306,1732555847026,-808.99,0.00027467,2]
[343308307,1732555847034,-500.0,0.00027468,2]
[343308308,1732555847043,-500.0,0.00027468,2]
[343308309,1732555847053,-500.0,0.00027468,2]
[343308310,1732555847063,-587.0,0.00027497,2]
[343308311,1732555847074,-680.00910509,0.0002764,2]
[343308312,1732555847084,-1542.54,0.00027657,2]
[343308313,1732555847094,-1547.39,0.00027657,2]
[343308314,1732555847103,-331.411789,0.0002768,2]
[343308315,1732555847113,-235.3233155,0.00027691,2]
[343308316,1732555847122,-500.0,0.00027699,2]
[343308317,1732555847132,-7435.93,0.00027699,2]
[343308318,1732555847141,-500.0,0.00027699,2]
[343308319,1732555847150,-500.0,0.00027741,2]
[343308320,1732555847162,-3944.06,0.00027741,2]
[343308321,1732555847172,-808.99,0.00027741,2]
[343308322,1732555847181,-500.0,0.00027742,2]
[343308323,1732555847191,-500.0,0.00027742,2]
[343308324,1732555847201,-500.0,0.00027742,2]
[343308325,1732555847211,-171.776016,0.00027794,2]
[343308326,1732555847221,-300.0,0.000278,2]
[343308327,1732555847230,-1542.54,0.00027931,2]
[343308328,1732555847239,-1547.39,0.00027931,2]
[343308329,1732555847248,-500.0,0.00027973,2]
[343308330,1732555847257,-7435.93,0.00027973,2]
[343308331,1732555847266,-405.8,0.00027973,2]
[343308332,1732555847275,-791.88915293,0.00027995,7]
[343308333,1732555847284,-6215.63466501,0.00028,2]
[343308334,1732555847293,-2000.0,0.00028,7]
[343308335,1732555847303,-500.0,0.00028015,2]
[343308336,1732555847312,-3944.06,0.00028015,2]
[343308337,1732555847326,-808.99,0.00028015,2]
[343308338,1732555847336,-500.0,0.00028016,2]
[343308339,1732555847345,-500.0,0.00028016,2]
[343308340,1732555847355,-331.11784639,0.00028016,2]
[343308341,1732555847364,-863.719891,0.00028022,2]
[343308342,1732555847374,-331.411789,0.00028022,2]
[343308343,1732555847383,-235.3233155,0.00028148,2]
[343308344,1732555847393,-151.0,0.000282,16]
[343308345,1732555847402,-1542.54,0.00028205,2]
[343308346,1732555847411,-1547.39,0.00028205,2]
[343308347,1732555847420,-500.0,0.00028247,2]
[343308348,1732555847429,-7435.93,0.00028247,2]
[343308349,1732555847438,-171.776016,0.00028249,2]
[343308350,1732555847447,-500.0,0.00028289,2]
[343308351,1732555847457,-3944.06,0.00028289,2]
[343308352,1732555847466,-808.99,0.00028289,2]
[343308353,1732555847475,-500.0,0.0002829,2]
[343308354,1732555847484,-500.0,0.0002829,2]
[343308355,1732555847494,-863.719891,0.00028363,2]
[343308356,1732555847503,-331.411789,0.00028363,2]
[343308357,1732555847513,-310.25259583,0.00028418,2]
[343308358,1732555847522,-1542.54,0.00028479,2]
[343308359,1732555847532,-1547.39,0.00028479,2]
[343308360,1732555847541,-561.02,0.00028521,2]
[343308361,1732555847551,-7435.93,0.00028521,2]
[343308362,1732555847560,-500.0,0.00028563,2]
[343308363,1732555847572,-3944.06,0.00028563,2]
[343308364,1732555847582,-808.99,0.00028563,2]
[343308365,1732555847591,-589.49,0.00028564,2]
[343308366,1732555847600,-500.0,0.00028564,2]
[343308367,1732555847610,-680.00910509,0.00028579,2]
[343308368,1732555847619,-235.3233155,0.00028605,2]
[343308369,1732555847628,-500.0,0.00028616,7]
[343308370,1732555847637,-151.0,0.00028654,7]
[343308371,1732555847647,-364.693066,0.000287,14]
[343308372,1732555847660,-863.719891,0.00028705,2]
[343308373,1732555847669,-171.776016,0.00028705,2]
[343308374,1732555847679,-331.411789,0.00028705,2]
[343308375,1732555847689,-1542.54,0.00028753,2]
[343308376,1732555847699,-1547.39,0.00028753,2]
[343308377,1732555847709,-500.0,0.00028767,4]
[343308378,1732555847718,-7435.93,0.00028795,2]
[343308379,1732555847729,-300.0,0.000288,2]
[343308380,1732555847740,-151.0,0.000288,14]
[343308381,1732555847749,-500.0,0.00028837,2]
[343308382,1732555847759,-3944.06,0.00028837,2]
[343308383,1732555847768,-808.99,0.00028837,2]
[343308384,1732555847778,-500.0,0.00028838,2]
[343308385,1732555847788,-1210.692953,0.000289,2]
[343308386,1732555847797,-486.09027567,0.0002895,2]
[343308387,1732555847807,-80587.15780041,0.00029,30]
[343308388,1732555847819,-15955.35303266,0.00029,21]
[343308389,1732555847829,-798.74935896,0.00029,2]
[343308390,1732555847838,-151.0,0.00029023,7]
[343308391,1732555847848,-1542.68,0.00029027,2]
[343308392,1732555847857,-1547.49,0.00029027,2]
[343308393,1732555847866,-615.512,0.00029041,2]
[343308394,1732555847875,-2523.869,0.00029041,2]
[343308395,1732555847884,-1105.0,0.00029041,2]
[343308396,1732555847894,-235.3233155,0.00029062,2]
[343308397,1732555847904,-7435.93,0.00029069,2]
[343308398,1732555847914,-823.0,0.00029096,2]
[343308399,1732555847923,-252.96,0.00029111,2]
[343308400,1732555847932,-3944.06,0.00029111,2]
[343308401,1732555847942,-808.99,0.00029111,2]
[343308402,1732555847952,-500.0,0.00029112,2]
[343308403,1732555847961,-1288.65,0.000292,2]
[343308404,1732555847970,-504.40584665,0.00029273,5]
[343308405,1732555847980,-73201.14549996,0.000293,2]
[343308406,1732555847989,-7436.05856807,0.00029343,2]
[343308407,1732555847998,-3944.06,0.00029385,2]
[343308408,1732555848007,-808.99,0.00029385,2]
[343308409,1732555848016,-500.0,0.00029386,2]
[343308410,1732555848025,-151.0,0.00029391,7]
[343308411,1732555848035,-8624.90882537,0.000294,7]
[343308412,1732555848044,-1000.0,0.000294,2]
[343308413,1732555848053,-222000.0,0.00029403,2]
[343308414,1732555848063,-324.0,0.00029423,2]
[343308415,1732555848080,-500.0,0.00029424,2]
[343308416,1732555848089,-4711.442,0.00029445,2]
[343308417,1732555848099,-500.0,0.00029452,2]
[343308418,1732555848108,-915.32391828,0.00029504,2]
[343308419,1732555848117,-680.00910509,0.00029519,2]
[343308420,1732555848126,-235.3233155,0.00029519,2]
[343308421,1732555848135,-164.21173675,0.00029519,2]
[343308422,1732555848144,-153.18685539,0.00029522,2]
[343308423,1732555848154,-717.2468528,0.00029522,2]
[343308424,1732555848163,-153.0,0.00029534,30]
[343308425,1732555848173,-153.0,0.00029534,30]
[343308426,1732555848182,-153.0,0.00029534,30]
[343308427,1732555848192,-153.0,0.00029534,30]
[343308428,1732555848202,-153.0,0.00029534,30]
[343308429,1732555848211,-153.0,0.00029534,30]